[Event "Late-Titled-Tuesday-Blitz-February-13-2024"]
[Site "Chess.com"]
[Date "2024.02.13"]
[Round "3"]
[White "viniciusrego"]
[Black "zverr1"]
[Result "1-0"]
[WhiteElo "2365"]
[BlackElo "2554"]
[TimeControl "180+1"]
[EndTime "14:28:14 PST"]
[Termination "viniciusrego won on time"]

1. Nf3 {[%clk 0:03:00.9]} 1... g6 {[%clk 0:02:59.7]} 2. d4 {[%clk 0:03:00.3]}
2... Nf6 {[%clk 0:02:59.8]} 3. c4 {[%clk 0:03:00.9]} 3... Bg7 {[%clk 0:02:59.9]}
4. Nc3 {[%clk 0:03:01.5]} 4... d5 {[%clk 0:03:00.5]} 5. Bf4 {[%clk 0:03:01.4]}
5... c6 {[%clk 0:02:59.4]} 6. e3 {[%clk 0:03:01.5]} 6... O-O {[%clk 0:02:59.3]}
7. Rc1 {[%clk 0:03:01.3]} 7... Bg4 {[%clk 0:02:56.8]} 8. h3 {[%clk 0:03:01.6]}
8... Bxf3 {[%clk 0:02:56.6]} 9. Qxf3 {[%clk 0:03:02.5]} 9... e6 {[%clk
0:02:57.3]} 10. Be2 {[%clk 0:03:02.1]} 10... dxc4 {[%clk 0:02:50.1]} 11. Bxc4
{[%clk 0:03:03]} 11... Nbd7 {[%clk 0:02:49.6]} 12. O-O {[%clk 0:03:02.7]} 12...
Nb6 {[%clk 0:02:49.5]} 13. Bb3 {[%clk 0:03:02.6]} 13... Nfd5 {[%clk 0:02:46.6]}
14. Bg3 {[%clk 0:03:00.8]} 14... Qe7 {[%clk 0:02:43.6]} 15. Ne4 {[%clk
0:02:57.2]} 15... Rfd8 {[%clk 0:02:37.5]} 16. Nc5 {[%clk 0:02:53.8]} 16... a5
{[%clk 0:01:40.6]} 17. a3 {[%clk 0:02:37.1]} 17... a4 {[%clk 0:01:36.3]} 18. Ba2
{[%clk 0:02:37.5]} 18... Ra7 {[%clk 0:01:27.9]} 19. e4 {[%clk 0:02:05.5]} 19...
Nc7 {[%clk 0:01:16.6]} 20. Be5 {[%clk 0:01:34.9]} 20... Nb5 {[%clk 0:01:04]} 21.
Bxg7 {[%clk 0:01:26]} 21... Kxg7 {[%clk 0:01:03.9]} 22. d5 {[%clk 0:01:17.9]}
22... cxd5 {[%clk 0:00:50.3]} 23. exd5 {[%clk 0:01:18.8]} 23... Nxd5 {[%clk
0:00:47.4]} 24. Rfd1 {[%clk 0:01:07.6]} 24... Nbc7 {[%clk 0:00:39.5]} 25. Qe4
{[%clk 0:00:52.5]} 25... b5 {[%clk 0:00:31.4]} 26. Nd3 {[%clk 0:00:46.1]} 26...
Qf6 {[%clk 0:00:28.3]} 27. Ne5 {[%clk 0:00:45.9]} 27... Rd6 {[%clk 0:00:22.5]}
28. Rc2 {[%clk 0:00:37.3]} 28... Na6 {[%clk 0:00:17.3]} 29. Bxd5 {[%clk
0:00:28.7]} 29... exd5 {[%clk 0:00:17.1]} 30. Rxd5 {[%clk 0:00:28.3]} 30... Re6
{[%clk 0:00:16.4]} 31. Qd4 {[%clk 0:00:20.5]} 31... Rae7 {[%clk 0:00:14.6]} 32.
Nf3 {[%clk 0:00:18.5]} 32... Qxd4 {[%clk 0:00:10.8]} 33. Nxd4 {[%clk 0:00:19.4]}
33... Re1+ {[%clk 0:00:10.7]} 34. Kh2 {[%clk 0:00:20.1]} 34... b4 {[%clk
0:00:10.1]} 35. Ra5 {[%clk 0:00:20]} 35... bxa3 {[%clk 0:00:07.3]} 36. bxa3
{[%clk 0:00:17.1]} 36... Nb8 {[%clk 0:00:03]} 37. Rxa4 {[%clk 0:00:17.1]} 37...
Rd1 {[%clk 0:00:03.3]} 38. Nf3 {[%clk 0:00:17.4]} 38... Ra1 {[%clk 0:00:01.9]}
39. Ra8 {[%clk 0:00:17.3]} 39... Nd7 {[%clk 0:00:02.2]} 40. Ra7 {[%clk
0:00:17.5]} 40... Rd1 {[%clk 0:00:01.6]} 41. Rcc7 {[%clk 0:00:17.7]} 41... Kf8
{[%clk 0:00:01.3]} 42. a4 {[%clk 0:00:17.7]} 42... f5 {[%clk 0:00:01.8]} 43. a5
{[%clk 0:00:17.7]} 43... Re5 {[%clk 0:00:01]} 44. Rxd7 {[%clk 0:00:17.8]} 1-0

[Event "Late-Titled-Tuesday-Blitz-February-13-2024"]
[Site "Chess.com"]
[Date "2024.02.13"]
[Round "3"]
[White "BigAl"]
[Black "mishanick"]
[Result "0-1"]
[WhiteElo "2526"]
[BlackElo "2974"]
[TimeControl "180+1"]
[EndTime "14:28:17 PST"]
[Termination "mishanick won by resignation"]

1. Nf3 {[%clk 0:02:59.8]} 1... d5 {[%clk 0:02:58.4]} 2. g3 {[%clk 0:03:00.2]}
2... g6 {[%clk 0:02:53]} 3. Bg2 {[%clk 0:02:59.9]} 3... Bg7 {[%clk 0:02:53.7]}
4. O-O {[%clk 0:03:00.8]} 4... e5 {[%clk 0:02:53.6]} 5. d3 {[%clk 0:02:59.5]}
5... Nc6 {[%clk 0:02:53.4]} 6. Nbd2 {[%clk 0:02:57.6]} 6... Nge7 {[%clk
0:02:50.6]} 7. c4 {[%clk 0:02:57.9]} 7... O-O {[%clk 0:02:46.4]} 8. Rb1 {[%clk
0:02:57.4]} 8... a5 {[%clk 0:02:44.2]} 9. b3 {[%clk 0:02:55.9]} 9... h6 {[%clk
0:02:40.6]} 10. a3 {[%clk 0:02:50.3]} 10... Be6 {[%clk 0:02:36]} 11. cxd5 {[%clk
0:02:42.6]} 11... Nxd5 {[%clk 0:02:35.3]} 12. Bb2 {[%clk 0:02:42.8]} 12... Re8
{[%clk 0:02:12]} 13. Nc4 {[%clk 0:02:29.6]} 13... Bg4 {[%clk 0:01:52.2]} 14. h3
{[%clk 0:02:27.6]} 14... Bxf3 {[%clk 0:01:52]} 15. Bxf3 {[%clk 0:02:28.1]} 15...
Nd4 {[%clk 0:01:52.6]} 16. Bg2 {[%clk 0:02:28.5]} 16... c6 {[%clk 0:01:51.4]}
17. e3 {[%clk 0:02:27.2]} 17... Nb5 {[%clk 0:01:50.9]} 18. Qc2 {[%clk
0:02:21.1]} 18... Qe7 {[%clk 0:01:50.8]} 19. Ra1 {[%clk 0:02:16.9]} 19... Kh7
{[%clk 0:01:46.8]} 20. Rfe1 {[%clk 0:02:09.8]} 20... Nd6 {[%clk 0:01:34.6]} 21.
Bxd5 {[%clk 0:01:53]} 21... cxd5 {[%clk 0:01:35.5]} 22. Nb6 {[%clk 0:01:53.7]}
22... Ra6 {[%clk 0:01:12.1]} 23. Nxd5 {[%clk 0:01:52.8]} 23... Qd7 {[%clk
0:01:12.7]} 24. Kh2 {[%clk 0:01:31.9]} 24... Rc8 {[%clk 0:01:12.7]} 25. Qe2
{[%clk 0:01:26.5]} 25... Qb5 {[%clk 0:01:11.8]} 26. e4 {[%clk 0:00:58.7]} 26...
Qxb3 {[%clk 0:01:11.5]} 27. Rac1 {[%clk 0:00:57.9]} 27... Rac6 {[%clk 0:01:08]}
28. Rxc6 {[%clk 0:00:57.4]} 28... Rxc6 {[%clk 0:01:08.9]} 29. Rc1 {[%clk
0:00:57]} 29... Nb5 {[%clk 0:01:04]} 30. Rxc6 {[%clk 0:00:46.5]} 30... bxc6
{[%clk 0:01:04.1]} 31. Ne3 {[%clk 0:00:40.8]} 31... Nxa3 {[%clk 0:01:00.6]} 32.
Bxa3 {[%clk 0:00:39.7]} 32... Qxa3 {[%clk 0:01:01.5]} 33. Qf3 {[%clk 0:00:39]}
33... Kg8 {[%clk 0:00:47.1]} 34. Qg4 {[%clk 0:00:30.8]} 34... Qxd3 {[%clk
0:00:29]} 35. Qc8+ {[%clk 0:00:31]} 35... Bf8 {[%clk 0:00:25.8]} 36. Ng4 {[%clk
0:00:25.2]} 36... Qd6 {[%clk 0:00:19.3]} 37. Nxh6+ {[%clk 0:00:24.7]} 37... Kg7
{[%clk 0:00:19.6]} 38. Ng4 {[%clk 0:00:25]} 38... a4 {[%clk 0:00:20.2]} 39. Qa8
{[%clk 0:00:23]} 39... a3 {[%clk 0:00:20.4]} 40. Qa5 {[%clk 0:00:19.4]} 40...
Qd4 {[%clk 0:00:18.3]} 41. Kg2 {[%clk 0:00:19.2]} 41... Qxe4+ {[%clk 0:00:18.1]}
42. Kh2 {[%clk 0:00:20.1]} 42... Qd5 {[%clk 0:00:18.3]} 43. Qa4 {[%clk 0:00:17]}
43... a2 {[%clk 0:00:18.5]} 44. Ne3 {[%clk 0:00:16.8]} 44... Qd2 {[%clk
0:00:16.8]} 45. Kg2 {[%clk 0:00:16.4]} 45... Qb2 {[%clk 0:00:17.5]} 46. Qg4
{[%clk 0:00:14.5]} 46... a1=Q {[%clk 0:00:17.2]} 47. Nf5+ {[%clk 0:00:14.9]}
47... Kg8 {[%clk 0:00:17.5]} 0-1

[Event "Late-Titled-Tuesday-Blitz-February-13-2024"]
[Site "Chess.com"]
[Date "2024.02.13"]
[Round "3"]
[White "IMRosen"]
[Black "Eloist"]
[Result "1-0"]
[WhiteElo "2637"]
[BlackElo "2442"]
[TimeControl "180+1"]
[EndTime "14:28:22 PST"]
[Termination "IMRosen won on time"]

1. d4 {[%clk 0:03:00.9]} 1... e6 {[%clk 0:02:52.8]} 2. Bf4 {[%clk 0:03:00.1]}
2... Nf6 {[%clk 0:02:52.4]} 3. e3 {[%clk 0:03:00.1]} 3... d5 {[%clk 0:02:51.6]}
4. Nf3 {[%clk 0:03:00.2]} 4... c5 {[%clk 0:02:51.4]} 5. Nbd2 {[%clk 0:03:00.2]}
5... Nc6 {[%clk 0:02:51.4]} 6. c3 {[%clk 0:03:00.6]} 6... Bd6 {[%clk 0:02:51]}
7. Bg3 {[%clk 0:03:01.2]} 7... O-O {[%clk 0:02:50.5]} 8. Bb5 {[%clk 0:03:01.3]}
8... Be7 {[%clk 0:02:39.6]} 9. Bd3 {[%clk 0:02:52]} 9... b6 {[%clk 0:02:34.9]}
10. Ne5 {[%clk 0:02:38.1]} 10... Nxe5 {[%clk 0:02:31.5]} 11. dxe5 {[%clk
0:02:29.9]} 11... Nd7 {[%clk 0:02:29.1]} 12. Nf3 {[%clk 0:02:29.6]} 12... a5
{[%clk 0:02:22.9]} 13. h4 {[%clk 0:02:27.9]} 13... Ba6 {[%clk 0:02:19.6]} 14.
Ng5 {[%clk 0:01:19.6]} 14... Bxd3 {[%clk 0:02:08.2]} 15. Qxd3 {[%clk 0:01:18.4]}
15... g6 {[%clk 0:01:51.4]} 16. f4 {[%clk 0:00:59.3]} 16... c4 {[%clk
0:01:49.4]} 17. Qc2 {[%clk 0:00:46.7]} 17... Nc5 {[%clk 0:01:49.1]} 18. O-O-O
{[%clk 0:00:44.8]} 18... Bxg5 {[%clk 0:01:36.1]} 19. hxg5 {[%clk 0:00:44]} 19...
Kg7 {[%clk 0:01:20]} 20. Rh3 {[%clk 0:00:31.7]} 20... Nd3+ {[%clk 0:01:11.8]}
21. Kb1 {[%clk 0:00:29.3]} 21... b5 {[%clk 0:01:11.2]} 22. Rdh1 {[%clk
0:00:27.3]} 22... Rh8 {[%clk 0:01:10.5]} 23. Be1 {[%clk 0:00:27.8]} 23... b4
{[%clk 0:01:08.3]} 24. g4 {[%clk 0:00:26.6]} 24... Rb8 {[%clk 0:01:00]} 25. Qh2
{[%clk 0:00:23.7]} 25... Kf8 {[%clk 0:00:35.6]} 26. Rxh7 {[%clk 0:00:22.4]}
26... Rxh7 {[%clk 0:00:34.6]} 27. Qxh7 {[%clk 0:00:23.1]} 27... Nxe1 {[%clk
0:00:29.3]} 28. Qh8+ {[%clk 0:00:22.9]} 28... Ke7 {[%clk 0:00:29.4]} 29. Qf6+
{[%clk 0:00:23.3]} 29... Kd7 {[%clk 0:00:29.2]} 30. Qxf7+ {[%clk 0:00:03.5]}
30... Qe7 {[%clk 0:00:28.6]} 31. Qxe7+ {[%clk 0:00:03.2]} 31... Kxe7 {[%clk
0:00:28.6]} 32. Rh7+ {[%clk 0:00:03.7]} 32... Kd8 {[%clk 0:00:27.3]} 33. Rh8+
{[%clk 0:00:02.3]} 33... Kc7 {[%clk 0:00:27.1]} 34. Rxb8 {[%clk 0:00:03]} 34...
Kxb8 {[%clk 0:00:27.1]} 35. f5 {[%clk 0:00:03.9]} 35... exf5 {[%clk 0:00:19.3]}
36. gxf5 {[%clk 0:00:04.4]} 36... bxc3 {[%clk 0:00:06.7]} 37. fxg6 {[%clk
0:00:02.7]} 37... d4 {[%clk 0:00:05.1]} 38. g7 {[%clk 0:00:02.6]} 38... c2+
{[%clk 0:00:03.6]} 39. Kc1 {[%clk 0:00:03.3]} 39... Nd3+ {[%clk 0:00:02.3]} 40.
Kxc2 {[%clk 0:00:03.2]} 40... Nb4+ {[%clk 0:00:02.5]} 41. Kb1 {[%clk 0:00:03]}
41... c3 {[%clk 0:00:01.5]} 42. g8=Q+ {[%clk 0:00:03.7]} 42... Kb7 {[%clk
0:00:01.6]} 43. exd4 {[%clk 0:00:04.4]} 43... c2+ {[%clk 0:00:01.2]} 44. Kc1
{[%clk 0:00:05]} 1-0

[Event "Late-Titled-Tuesday-Blitz-February-13-2024"]
[Site "Chess.com"]
[Date "2024.02.13"]
[Round "3"]
[White "CRObliterator"]
[Black "laziestwin"]
[Result "1-0"]
[WhiteElo "2391"]
[BlackElo "2558"]
[TimeControl "180+1"]
[EndTime "14:28:26 PST"]
[Termination "CRObliterator won by resignation"]

1. e4 {[%clk 0:03:00.9]} 1... c5 {[%clk 0:02:59.2]} 2. c3 {[%clk 0:03:00.6]}
2... g6 {[%clk 0:02:56.3]} 3. d4 {[%clk 0:03:00.1]} 3... cxd4 {[%clk 0:02:57.2]}
4. Bc4 {[%clk 0:02:57.3]} 4... Nc6 {[%clk 0:02:53]} 5. Nf3 {[%clk 0:02:56.7]}
5... Bg7 {[%clk 0:02:52.2]} 6. cxd4 {[%clk 0:02:53.3]} 6... d6 {[%clk
0:02:47.5]} 7. h3 {[%clk 0:02:51.5]} 7... Nf6 {[%clk 0:02:47.7]} 8. Nc3 {[%clk
0:02:50.8]} 8... O-O {[%clk 0:02:48.3]} 9. O-O {[%clk 0:02:50.3]} 9... Nxe4
{[%clk 0:02:46.2]} 10. Nxe4 {[%clk 0:02:49.6]} 10... d5 {[%clk 0:02:46]} 11. Bd3
{[%clk 0:02:46.1]} 11... dxe4 {[%clk 0:02:46]} 12. Bxe4 {[%clk 0:02:47]} 12...
Nxd4 {[%clk 0:02:46.5]} 13. Nxd4 {[%clk 0:02:46.9]} 13... Qxd4 {[%clk
0:02:47.3]} 14. Qxd4 {[%clk 0:02:44.8]} 14... Bxd4 {[%clk 0:02:48.2]} 15. Bh6
{[%clk 0:02:44.3]} 15... Rd8 {[%clk 0:02:44.4]} 16. Rfd1 {[%clk 0:02:24.5]}
16... f5 {[%clk 0:02:08.6]} 17. Be3 {[%clk 0:02:16.7]} 17... e5 {[%clk
0:02:00.6]} 18. Bf3 {[%clk 0:02:07.3]} 18... Be6 {[%clk 0:01:58.5]} 19. Bxb7
{[%clk 0:01:50.1]} 19... Rab8 {[%clk 0:01:56.7]} 20. Bf3 {[%clk 0:01:36.2]}
20... Rxb2 {[%clk 0:01:33.9]} 21. Rac1 {[%clk 0:01:33.8]} 21... Bxa2 {[%clk
0:01:07]} 22. Rc7 {[%clk 0:01:18.9]} 22... Rb1 {[%clk 0:01:05.1]} 23. Rxb1
{[%clk 0:01:10.4]} 23... Bxb1 {[%clk 0:01:06]} 24. Bg5 {[%clk 0:01:08.9]} 24...
Rd6 {[%clk 0:00:28.7]} 25. Be7 {[%clk 0:00:51.5]} 25... Ra6 {[%clk 0:00:05]} 26.
Bd5+ {[%clk 0:00:50.2]} 26... Kg7 {[%clk 0:00:05.1]} 27. Bg5+ {[%clk 0:00:39.2]}
27... Kf8 {[%clk 0:00:05.1]} 28. Bh6+ {[%clk 0:00:22.4]} 28... Ke8 {[%clk
0:00:04.8]} 29. Bg5 {[%clk 0:00:15.5]} 29... Ba2 {[%clk 0:00:03.3]} 30. Bc6+
{[%clk 0:00:12]} 30... Kf8 {[%clk 0:00:03.1]} 31. Bh6+ {[%clk 0:00:10.9]} 31...
Kg8 {[%clk 0:00:02.7]} 32. Rg7+ {[%clk 0:00:08.7]} 32... Kf8 {[%clk 0:00:02.1]}
33. Rxa7+ {[%clk 0:00:08.1]} 33... Kg8 {[%clk 0:00:02.5]} 34. Rxa6 {[%clk
0:00:08.5]} 34... Be6 {[%clk 0:00:01.9]} 35. Ra8+ {[%clk 0:00:07.9]} 35... Kf7
{[%clk 0:00:02.5]} 36. Be8+ {[%clk 0:00:08.1]} 36... Kf6 {[%clk 0:00:03.2]} 37.
Be3 {[%clk 0:00:07.9]} 37... Bxe3 {[%clk 0:00:03.3]} 38. fxe3 {[%clk 0:00:08.8]}
38... f4 {[%clk 0:00:04]} 39. exf4 {[%clk 0:00:08.7]} 39... exf4 {[%clk
0:00:04.9]} 40. Kf2 {[%clk 0:00:09.3]} 40... g5 {[%clk 0:00:05.5]} 41. Ra6
{[%clk 0:00:09.5]} 41... Ke5 {[%clk 0:00:05.8]} 42. Bh5 {[%clk 0:00:09.2]} 42...
Bf5 {[%clk 0:00:05.7]} 43. Bg4 {[%clk 0:00:09.4]} 43... Be4 {[%clk 0:00:06]} 44.
Re6+ {[%clk 0:00:09.1]} 44... Kd4 {[%clk 0:00:06.5]} 45. Re7 {[%clk 0:00:09.5]}
45... Kd5 {[%clk 0:00:05.2]} 46. Bf3 {[%clk 0:00:09.4]} 46... Bxf3 {[%clk
0:00:05.7]} 47. Kxf3 {[%clk 0:00:09.9]} 47... Kd4 {[%clk 0:00:06.3]} 48. Rxh7
{[%clk 0:00:10]} 1-0

[Event "Late-Titled-Tuesday-Blitz-February-13-2024"]
[Site "Chess.com"]
[Date "2024.02.13"]
[Round "3"]
[White "koncheto"]
[Black "waltereador"]
[Result "0-1"]
[WhiteElo "2480"]
[BlackElo "2276"]
[TimeControl "180+1"]
[EndTime "14:28:27 PST"]
[Termination "waltereador won on time"]

1. e4 {[%clk 0:02:47.9]} 1... e5 {[%clk 0:02:58.5]} 2. Nf3 {[%clk 0:02:47.8]}
2... Nf6 {[%clk 0:02:57.9]} 3. Nxe5 {[%clk 0:02:46.6]} 3... d6 {[%clk
0:02:55.9]} 4. Nf3 {[%clk 0:02:42.7]} 4... Nxe4 {[%clk 0:02:55.8]} 5. d4 {[%clk
0:02:43.6]} 5... d5 {[%clk 0:02:55.4]} 6. Bd3 {[%clk 0:02:43.2]} 6... Bd6 {[%clk
0:02:55.8]} 7. O-O {[%clk 0:02:42.8]} 7... O-O {[%clk 0:02:56.3]} 8. h3 {[%clk
0:02:42.7]} 8... c5 {[%clk 0:02:52.5]} 9. c4 {[%clk 0:02:39.9]} 9... cxd4 {[%clk
0:02:48.5]} 10. cxd5 {[%clk 0:02:40]} 10... Nf6 {[%clk 0:02:47.9]} 11. Bg5
{[%clk 0:02:38.1]} 11... Be7 {[%clk 0:02:46.8]} 12. Nxd4 {[%clk 0:02:34.7]}
12... Qxd5 {[%clk 0:02:45.8]} 13. Be3 {[%clk 0:02:26.4]} 13... Rd8 {[%clk
0:02:35.8]} 14. Nc3 {[%clk 0:02:22.5]} 14... Qh5 {[%clk 0:02:28.9]} 15. Be2
{[%clk 0:02:15.1]} 15... Qg6 {[%clk 0:02:23.8]} 16. Kh1 {[%clk 0:01:33]} 16...
Nc6 {[%clk 0:02:21.2]} 17. Nxc6 {[%clk 0:01:33.4]} 17... bxc6 {[%clk 0:02:19.5]}
18. Qa4 {[%clk 0:01:26]} 18... Bd7 {[%clk 0:02:13.6]} 19. Bf3 {[%clk 0:01:25.8]}
19... Nd5 {[%clk 0:02:09.5]} 20. Bd4 {[%clk 0:01:12.6]} 20... Bf6 {[%clk
0:01:59.8]} 21. Nxd5 {[%clk 0:01:10.4]} 21... cxd5 {[%clk 0:01:58.3]} 22. Qb4
{[%clk 0:01:10.7]} 22... Rab8 {[%clk 0:01:56.6]} 23. Qd2 {[%clk 0:01:10.9]}
23... Bg5 {[%clk 0:01:50.2]} 24. Qc3 {[%clk 0:01:04.9]} 24... Rdc8 {[%clk
0:01:44.9]} 25. Qa3 {[%clk 0:01:01.2]} 25... Bf6 {[%clk 0:01:29.9]} 26. Qxa7
{[%clk 0:00:58.5]} 26... Bxh3 {[%clk 0:01:16.9]} 27. Bxf6 {[%clk 0:00:18.1]}
27... Qxf6 {[%clk 0:01:14.6]} 28. Bxd5 {[%clk 0:00:18.8]} 28... Be6 {[%clk
0:01:09.4]} 29. Bxe6 {[%clk 0:00:18.9]} 29... Qxe6 {[%clk 0:01:06.2]} 30. b3
{[%clk 0:00:19.5]} 30... Rb5 {[%clk 0:01:04.1]} 31. Kg1 {[%clk 0:00:10.5]} 31...
h5 {[%clk 0:01:00.6]} 32. Rfe1 {[%clk 0:00:09.1]} 32... Re5 {[%clk 0:00:59.2]}
33. Rxe5 {[%clk 0:00:08.8]} 33... Qxe5 {[%clk 0:00:59.3]} 34. Rd1 {[%clk
0:00:09.7]} 34... g6 {[%clk 0:00:50.9]} 35. Qd7 {[%clk 0:00:06.5]} 35... Re8
{[%clk 0:00:50.5]} 36. a4 {[%clk 0:00:06.4]} 36... Rb8 {[%clk 0:00:48.1]} 37.
Qd3 {[%clk 0:00:04.5]} 37... Qb2 {[%clk 0:00:45.8]} 38. Rb1 {[%clk 0:00:04.2]}
38... Qa3 {[%clk 0:00:42]} 39. Qc2 {[%clk 0:00:02.2]} 39... Qb4 {[%clk
0:00:38.2]} 40. Qa2 {[%clk 0:00:02.2]} 40... h4 {[%clk 0:00:31.7]} 41. a5 {[%clk
0:00:01.8]} 41... h3 {[%clk 0:00:31.6]} 42. gxh3 {[%clk 0:00:02.7]} 42... Qc3
{[%clk 0:00:27.1]} 43. a6 {[%clk 0:00:02.6]} 43... Qxh3 {[%clk 0:00:26.5]} 44.
a7 {[%clk 0:00:03]} 44... Qg4+ {[%clk 0:00:26]} 45. Kf1 {[%clk 0:00:03.2]} 45...
Ra8 {[%clk 0:00:25.5]} 46. Ra1 {[%clk 0:00:01.1]} 46... Qh3+ {[%clk 0:00:24.8]}
47. Ke1 {[%clk 0:00:01.6]} 47... Qd3 {[%clk 0:00:20]} 0-1

[Event "Late-Titled-Tuesday-Blitz-February-13-2024"]
[Site "Chess.com"]
[Date "2024.02.13"]
[Round "3"]
[White "Oleksandr_Bortnyk"]
[Black "GMRAVEN_ON_YOUTUBE"]
[Result "1-0"]
[WhiteElo "3052"]
[BlackElo "2787"]
[TimeControl "180+1"]
[EndTime "14:28:32 PST"]
[Termination "Oleksandr_Bortnyk won on time"]

1. e4 {[%clk 0:03:00.9]} 1... c5 {[%clk 0:03:00.1]} 2. c3 {[%clk 0:02:59.9]}
2... Nf6 {[%clk 0:02:59.4]} 3. e5 {[%clk 0:02:59.6]} 3... Nd5 {[%clk 0:03:00]}
4. d4 {[%clk 0:02:59.7]} 4... cxd4 {[%clk 0:02:59.8]} 5. Nf3 {[%clk 0:03:00.1]}
5... e6 {[%clk 0:02:59.2]} 6. cxd4 {[%clk 0:03:00.2]} 6... d6 {[%clk 0:02:59.6]}
7. Bc4 {[%clk 0:02:59.9]} 7... Nc6 {[%clk 0:02:54.6]} 8. O-O {[%clk 0:02:59.4]}
8... dxe5 {[%clk 0:02:51.2]} 9. Nxe5 {[%clk 0:02:57.2]} 9... Be7 {[%clk
0:02:48.5]} 10. Nxc6 {[%clk 0:02:55.5]} 10... bxc6 {[%clk 0:02:48.9]} 11. Qf3
{[%clk 0:02:52.7]} 11... O-O {[%clk 0:02:44]} 12. Rd1 {[%clk 0:02:51.9]} 12...
a5 {[%clk 0:02:39.3]} 13. Nd2 {[%clk 0:02:50.9]} 13... Ba6 {[%clk 0:02:39.2]}
14. Bb3 {[%clk 0:02:47.6]} 14... Bb5 {[%clk 0:02:34.9]} 15. Ne4 {[%clk
0:02:44.9]} 15... Qb6 {[%clk 0:02:22]} 16. h4 {[%clk 0:02:33.3]} 16... Rfd8
{[%clk 0:02:11.2]} 17. Ng5 {[%clk 0:02:29.8]} 17... Nf6 {[%clk 0:02:08.3]} 18.
Be3 {[%clk 0:02:28.2]} 18... Qa6 {[%clk 0:02:06.9]} 19. Qh3 {[%clk 0:02:02.6]}
19... Bc4 {[%clk 0:01:57.1]} 20. Bxc4 {[%clk 0:01:57.3]} 20... Qxc4 {[%clk
0:01:56.9]} 21. b3 {[%clk 0:01:57.4]} 21... Qb5 {[%clk 0:01:55.4]} 22. Rac1
{[%clk 0:01:48.7]} 22... a4 {[%clk 0:01:50.8]} 23. bxa4 {[%clk 0:01:35.5]} 23...
Rxa4 {[%clk 0:01:49]} 24. Rc2 {[%clk 0:01:34.7]} 24... Rc4 {[%clk 0:01:48.1]}
25. Rcd2 {[%clk 0:01:12.3]} 25... Qd5 {[%clk 0:01:34.4]} 26. Nf3 {[%clk
0:01:02.7]} 26... Ra4 {[%clk 0:01:32.5]} 27. Ne5 {[%clk 0:01:02.1]} 27... Rda8
{[%clk 0:01:28.3]} 28. Rc1 {[%clk 0:00:53.5]} 28... c5 {[%clk 0:01:25.1]} 29.
Qf3 {[%clk 0:00:40.4]} 29... Rxa2 {[%clk 0:00:45.5]} 30. Rxa2 {[%clk 0:00:34.2]}
30... Rxa2 {[%clk 0:00:39.9]} 31. Nc6 {[%clk 0:00:33.8]} 31... Kf8 {[%clk
0:00:26.9]} 32. Nxe7 {[%clk 0:00:29.9]} 32... Kxe7 {[%clk 0:00:27.1]} 33. Qg3
{[%clk 0:00:21.9]} 33... cxd4 {[%clk 0:00:18]} 34. Bg5 {[%clk 0:00:21.4]} 34...
Ra7 {[%clk 0:00:16.4]} 35. Qb8 {[%clk 0:00:14.5]} 35... Rd7 {[%clk 0:00:16.2]}
36. Rc8 {[%clk 0:00:13.4]} 36... Rd8 {[%clk 0:00:12.9]} 37. Rc7+ {[%clk
0:00:12.1]} 37... Rd7 {[%clk 0:00:12.5]} 38. Rc8 {[%clk 0:00:08.6]} 38... Rd8
{[%clk 0:00:13]} 39. Qa7+ {[%clk 0:00:07.7]} 39... Rd7 {[%clk 0:00:10.8]} 40.
Qa3+ {[%clk 0:00:07.2]} 40... Qd6 {[%clk 0:00:10.6]} 41. Qd3 {[%clk 0:00:02.3]}
41... h6 {[%clk 0:00:10]} 42. Bc1 {[%clk 0:00:02.4]} 42... Nd5 {[%clk
0:00:09.2]} 43. Ba3 {[%clk 0:00:02.5]} 43... Nb4 {[%clk 0:00:09.2]} 44. Qb5
{[%clk 0:00:02.8]} 44... Ra7 {[%clk 0:00:06.6]} 45. Qxb4 {[%clk 0:00:01.6]}
45... Rxa3 {[%clk 0:00:06.1]} 46. Rc7+ {[%clk 0:00:01.6]} 1-0